[Event "45th FIDE Womens Olympiad 2024"]
[Site "Budapest"]
[Date "2024.09.19"]
[Round "8.16"]
[White "Krasteva, Beloslava"]
[Black "Khotenashvili, Bella"]
[Result "1/2-1/2"]
[ECO "D00"]
[WhiteElo "2295"]
[BlackElo "2432"]
[Annotator "TA"]
[PlyCount "115"]
[EventDate "2024.09.05"]
[EventType "team-tourn"]
[EventCountry "HUN"]
[SourceTitle "playchess.com"]
[Source "ChessBase"]
[SourceQuality "1"]
[WhiteTeam "Bulgaria"]
[BlackTeam "Georgia"]
[WhiteTeamCountry "BUL"]
[BlackTeamCountry "GEO"]
[TimeControl "40/5400+30:1800+30"]

{[%evp 10,115,6,-1,6,4,17,0,0,0,19,20,0,-18,-13,-12,-24,-42,-24,-52,-32,-56,-23,-16,-17,-41,-45,-69,-28,-32,-27,-8,0,-6,27,34,26,37,22,25,83,85,97,91,85,91,83,47,73,57,53,26,30,25,23,16,45,35,34,36,45,24,30,29,61,47,47,38,50,0,0,0,43,45,51,51,56,60,96,94,111,120,103,125,129,100,81,86,95,88,70,0,0,0,74,19,18,27,25,-4,0,-4,0,0,33,11,14,8]} 1. d4 {[%emt 0:00:04]} Nf6 {[%emt 0:00:08]} 2. Bg5 {[%emt 0:00:06]} g6 {[%emt 0:00:57]} 3. Bxf6 {[%emt 0:00:48]} exf6 {[%emt 0:00:06]} 4. e3 {[%emt 0:00:49]} d5 {[%emt 0:00:06]} 5. c4 {[%emt 0:01:23]} dxc4 {[%emt 0:00:15]} 6. Bxc4 {[%emt 0:00:17]} Bd6 {[%emt 0:00:06]} 7. Nc3 {[%emt 0:04:49]} c6 {[%emt 0:01:00]} 8. Qf3 {[%emt 0:08:29]} O-O {[%emt 0:02:35]} 9. g4 {[%emt 0:04:26]} f5 {[%emt 0:13:35]} 10. gxf5 {[%emt 0:03:09]} Bxf5 {[%emt 0:00:25]} 11. Nge2 {[%emt 0:01:20][%cal Bg1e2,Be2g3,Bg3e4,Be4c5][%mdl 32]} Qh4 {[%emt 0:04:24][%cal Ob8d7]} 12. O-O-O {[%emt 0:19:47]} Nd7 {[%emt 0:14:37]} (12... Bxh2 $2 13. Qg2 Kg7 14. Rxh2 $18 (14. Qxh2 Qxh2 15. Rxh2 b5 $18)) 13. h3 {[%emt 0:02:52] Prevents Bg4} Nb6 {[%emt 0:08:51]} 14. Bb3 {[%emt 0:08:58]} (14. Bd3 {simplifies} Be6 15. Qe4 Qxe4 16. Bxe4 Rfd8 17. Bf3) 14... a5 {[%emt 0:02:17]} 15. Ng3 {[%emt 0:05:11]} Bd7 {[%emt 0:01:42][%cal Oa5a4]} (15... Bxh3 $2 {too greedy.} 16. Nge4 Be7 17. Rxh3 $18 (17. Qxh3 Qxh3 18. Rxh3 a4 $18)) (15... Be6 {simplifies} 16. Bxe6 fxe6 17. Qg2 e5) 16. Nge4 {[%emt 0:08:58]} Be7 {[%emt 0:01:21]} 17. Nc5 {[%emt 0:00:15]} Bc8 {[%emt 0:04:15]} 18. Rdg1 {[%emt 0:09:22]} a4 {[%emt 0:16:45]} 19. N3xa4 {[%emt 0:03:03]} Nxa4 {[%emt 0:00:30]} 20. Nxa4 {[%emt 0:00:05]} Ra5 {[%emt 0:10:48]} 21. Qg3 {[%emt 0:04:26]} Rg5 {[%emt 0:04:09]} 22. Qxh4 {[%emt 0:01:47]} Rxg1+ {[%emt 0:00:01]} 23. Rxg1 {[%emt 0:00:08]} Bxh4 {[%emt 0:00:02]} 24. Rg2 {[%emt 0:00:12]} g5 {[%emt 0:02:13]} (24... Bxh3 $2 {perishes.} 25. Rh2 $18) (24... Kg7 $11 {remains equal.}) 25. Rh2 $16 {[%emt 0:00:55]} Kg7 {[%emt 0:01:13]} 26. Nc5 {[%emt 0:01:42]} Re8 {[%emt 0:07:18]} 27. Kd2 {[%emt 0:04:52]} f5 {[%emt 0:03:02]} 28. Nd3 {[%emt 0:02:08]} Kf6 {[%emt 0:00:30]} 29. Ne5 {[%emt 0:02:01]} c5 {[%emt 0:00:12]} 30. Nf3 {[%emt 0:00:58]} cxd4 {[%emt 0:00:07]} 31. Nxd4 {[%emt 0:00:58]} Rd8 {[%emt 0:01:19]} 32. Kc3 {[%emt 0:00:50]} Bd7 {[%emt 0:00:47]} 33. Bd5 {[%emt 0:01:09]} b6 {[%emt 0:00:29]} 34. a3 {[%emt 0:00:28]} Be8 {[%emt 0:00:34]} 35. Bb3 {[%emt 0:00:25]} Bh5 {[%emt 0:00:35]} 36. Bc2 {[%emt 0:00:28]} Bg6 {[%emt 0:00:28]} 37. Nf3 {[%emt 0:00:40]} Rc8+ {[%emt 0:00:21]} 38. Kd2 {[%emt 0:00:06]} Rd8+ {[%emt 0:00:45]} 39. Kc3 {[%emt 0:00:27]} Rc8+ {[%emt 0:00:06]} 40. Kd2 {[%emt 0:00:05]} Rd8+ $1 {[%emt 0:00:30]} 41. Ke1 {[%emt 0:02:29]} Bh5 {[%emt 0:10:55]} 42. Nxh4 {[%emt 0:05:21]} gxh4 $14 {[%emt 0:00:05][%mdl 4096] Endgame. KRB-KRB} 43. f4 $1 {[%emt 0:01:54]} Rg8 {[%emt 0:04:59]} 44. Rd2 {[%emt 0:05:53]} Rg3 {[%emt 0:00:26][%csl LRe3,LRh3]} 45. Rd6+ {[%emt 0:00:39]} Ke7 {[%emt 0:00:18]} 46. Rxb6 {[%emt 0:00:32]} Bg6 {[%emt 0:03:22]} 47. Kf2 {[%emt 0:09:56]} Rxh3 {[%emt 0:00:28] [#] Threatens to win with ...Rh2+.} 48. Bd1 {[%emt 0:01:43] aiming for Bf3.} Rh2+ {[%emt 0:00:20]} 49. Kg1 {[%emt 0:00:19]} Rh3 {[%emt 0:06:51]} 50. Kf2 {[%emt 0:01:37] And now Bf3 would win.} Rh2+ $1 {[%emt 0:00:15]} 51. Kg1 {[%emt 0:00:05]} Rh3 {[%emt 0:00:03]} 52. Kg2 {[%emt 0:04:26]} ({Better is} 52. Rb3 $16) 52... Rxe3 $11 {[%emt 0:00:29]} 53. Rb3 {[%emt 0:00:43]} Re4 {[%emt 0:01:32]} 54. a4 {[%emt 0:00:25]} Rd4 {[%emt 0:01:30]} 55. Re3+ {[%emt 0:01:26]} Kf6 {[%emt 0:02:03]} 56. Bb3 {[%emt 0:00:59] a5 is the strong threat.} Rd2+ {[%emt 0:03:25]} 57. Kh3 {[%emt 0:00:08] [#] a5 would now be deadly.} Rxb2 {[%emt 0:00:03]} 58. Kxh4 {[%emt 0:00:52] Weighted Error Value: White=0.12 (very precise) /Black=0.09 (flawless) .  Mistake:       	White=1     	Black=1      Inaccurate:     	White=4     	Black=8      OK:         	White=16    	Black=18     Best:        	White=6     	Black=5      Strong:       	White=1     	Black=2} 1/2-1/2

[Event "45th FIDE Womens Olympiad 2024"]
[Site "Budapest"]
[Date "2024.09.19"]
[Round "8.17"]
[White "Khamdamova, Afruza"]
[Black "Yip, Carissa"]
[Result "0-1"]
[ECO "B01"]
[WhiteElo "2313"]
[BlackElo "2386"]
[Annotator "RC"]
[PlyCount "144"]
[EventDate "2024.09.05"]
[EventType "team-tourn"]
[EventCountry "HUN"]
[SourceTitle "playchess.com"]
[Source "ChessBase"]
[SourceQuality "1"]
[WhiteTeam "Uzbekistan"]
[BlackTeam "United States of America"]
[WhiteTeamCountry "UZB"]
[BlackTeamCountry "USA"]
[TimeControl "40/5400+30:1800+30"]

1. e4 {[%emt 0:00:03]} d5 {[%emt 0:00:02]} 2. exd5 {[%emt 0:00:26]} Qxd5 {[%emt 0:00:04]} 3. Nc3 {[%emt 0:00:12]} Qd8 {[%emt 0:00:03]} 4. d4 {[%emt 0:00:20]} Nf6 {[%emt 0:00:05]} 5. Nf3 {[%emt 0:03:07]} g6 {[%emt 0:00:09]} 6. Bc4 {[%emt 0:07:05]} Bg7 {[%emt 0:00:28]} 7. O-O {[%emt 0:00:16]} O-O {[%emt 0:00:06]} 8. h3 {[%emt 0:00:05]} a6 {[%emt 0:00:21]} 9. a4 {[%emt 0:01:09]} b6 {[%emt 0:00:12]} 10. Re1 {[%emt 0:05:54]} Bb7 {[%emt 0:00:41]} 11. Bf4 {[%emt 0:00:49]} e6 {[%emt 0:04:04]} 12. Qe2 {[%emt 0:12:35]} Nc6 {[%emt 0:00:11]} 13. Rad1 {[%emt 0:00:50]} Re8 {[%emt 0:00:12]} 14. Bb3 {[%emt 0:03:56]} Ne7 {[%emt 0:03:59]} 15. Be5 {[%emt 0:14:52]} Nf5 {[%emt 0:02:53]} 16. Nb1 {[%emt 0:01:53]} Ne4 {[%emt 0:14:43]} 17. Bxg7 {[%emt 0:08:17]} Kxg7 {[%emt 0:00:40]} 18. Nbd2 {[%emt 0:02:36]} Nxd2 {[%emt 0:05:48]} 19. Rxd2 {[%emt 0:00:07]} Bxf3 {[%emt 0:30:02]} 20. Qxf3 {[%emt 0:00:05]} c5 {[%emt 0:00:55]} 21. c3 {[%emt 0:06:04]} cxd4 {[%emt 0:00:41]} 22. cxd4 {[%emt 0:01:18]} Qd6 {[%emt 0:03:30]} 23. Red1 {[%emt 0:00:20]} Ra7 {[%emt 0:03:45]} 24. Bc2 {[%emt 0:02:01]} Ne7 {[%emt 0:00:04]} 25. Qe3 {[%emt 0:00:46]} Rd8 {[%emt 0:04:34]} 26. Qe5+ {[%emt 0:03:31]} Kg8 {[%emt 0:00:04]} 27. Bb3 {[%emt 0:02:57]} Rad7 {[%emt 0:10:54]} 28. Qf6 {[%emt 0:00:37]} Rc8 {[%emt 0:00:36]} 29. Rd3 {[%emt 0:06:43]} Nf5 {[%emt 0:08:14]} 30. Re1 {[%emt 0:07:18]} Ne7 {[%emt 0:03:19]} 31. Red1 {[%emt 0:02:57]} Nd5 {[%emt 0:00:14]} 32. Qe5 {[%emt 0:00:23]} Nb4 {[%emt 0:00:45]} 33. R3d2 {[%emt 0:00:17]} Rcd8 {[%emt 0:01:10]} 34. Qe3 {[%emt 0:00:53]} Rc7 {[%emt 0:00:42]} 35. Qf3 {[%emt 0:01:25]} Nd5 {[%emt 0:00:22]} 36. Qe2 {[%emt 0:01:19]} a5 {[%emt 0:00:17]} 37. Qe5 {[%emt 0:00:33]} Nb4 {[%emt 0:01:02]} 38. Qb5 {[%emt 0:01:10]} Rdc8 {[%emt 0:00:28]} 39. g3 {[%emt 0:02:49]} Rc1 {[%emt 0:00:26]} 40. Qe5 {[%emt 0:00:51]} Rxd1+ {[%emt 0:02:30]} 41. Rxd1 {[%emt 0:30:06]} Rd8 {[%emt 0:30:17]} 42. Qf6 {[%emt 0:01:10]} Nd5 {[%emt 0:00:54]} 43. Qf3 {[%emt 0:00:00]} Qb4 {[%emt 0:00:00]} 44. Kg2 {[%emt 0:00:00]} Kg7 {[%emt 0:00:00]} 45. Rd3 {[%emt 0:00:00]} h5 {[%emt 0:00:00]} 46. Qe4 {[%emt 0:00:00]} b5 {[%emt 0:00:00]} 47. Qe5+ {[%emt 0:00:00]} Kg8 {[%emt 0:00:00]} 48. axb5 {[%emt 0:00:00]} Qxb5 {[%emt 0:00:00]} 49. Rf3 {[%emt 0:00:00]} Qc6 {[%emt 0:00:00]} 50. g4 {[%emt 0:00:00]} h4 {[%emt 0:00:00]} 51. Bxd5 {[%emt 0:00:00]} Rxd5 {[%emt 0:00:00]} 52. Qf6 {[%emt 0:00:34]} Qb7 {[%emt 0:00:00]} 53. b3 {[%emt 0:00:46]} Rd7 {[%emt 0:00:00]} 54. Kh2 {[%emt 0:01:05]} Rxd4 {[%emt 0:00:00]} 55. Qxd4 {[%emt 0:01:12]} Qxf3 {[%emt 0:00:00]} 56. Qd8+ {[%emt 0:00:03]} Kg7 {[%emt 0:00:00]} 57. Qd4+ {[%emt 0:00:18]} Kh7 {[%emt 0:00:00]} 58. Qa7 {[%emt 0:01:08]} Kh6 {[%emt 0:00:00]} 59. Qb6 {[%emt 0:00:31]} e5 {[%emt 0:00:00]} 60. Qc5 {[%emt 0:00:35]} Kh7 {[%emt 0:01:07]} 61. Qb6 {[%emt 0:00:16]} Qf4+ {[%emt 0:02:48]} 62. Kg2 {[%emt 0:00:21]} Qe4+ {[%emt 0:00:11]} 63. Kg1 {[%emt 0:00:46]} Qb1+ {[%emt 0:00:23]} 64. Kh2 {[%emt 0:01:46]} a4 {[%emt 0:00:04]} 65. Qf6 {[%emt 0:00:18]} Qxb3 {[%emt 0:00:05]} 66. Qxh4+ {[%emt 0:00:40]} Kg7 {[%emt 0:00:06]} 67. Qe7 {[%emt 0:00:11]} Qb2 {[%emt 0:00:44]} 68. Kg2 {[%emt 0:00:40]} a3 {[%emt 0:00:13]} 69. g5 {[%emt 0:00:32]} e4 {[%emt 0:00:38]} 70. h4 {[%emt 0:00:28]} a2 {[%emt 0:00:24]} 71. h5 {[%emt 0:00:34]} gxh5 {[%emt 0:00:09]} 72. g6 {[%emt 0:02:02]} Qf6 {[%emt 0:00:09]} 0-1

[Event "45th FIDE Womens Olympiad 2024"]
[Site "Budapest"]
[Date "2024.09.19"]
[Round "8.18"]
[White "Krush, Irina"]
[Black "Yakubbaeva, Nilufar"]
[Result "1-0"]
[ECO "D27"]
[WhiteElo "2396"]
[BlackElo "2248"]
[Annotator "TA"]
[PlyCount "59"]
[EventDate "2024.09.05"]
[EventType "team-tourn"]
[EventCountry "HUN"]
[SourceTitle "playchess.com"]
[Source "ChessBase"]
[SourceQuality "1"]
[WhiteTeam "United States of America"]
[BlackTeam "Uzbekistan"]
[WhiteTeamCountry "USA"]
[BlackTeamCountry "UZB"]
[TimeControl "40/5400+30:1800+30"]

{[%evp 18,59,-15,-23,-12,-20,-26,-28,-25,-36,-22,-102,45,64,136,83,75,70,174,185,439,442,452,445,427,245,259,247,637,598,1153,1187,1277,1270,1399,1394,1394,1270,1473,768,1380,1360,1318,1192]} 1. Nf3 {[%emt 0:00:04]} d5 {[%emt 0:00:06]} 2. d4 {[%emt 0:00:13]} Nf6 {[%emt 0:00:14]} 3. c4 {[%emt 0:00:11]} e6 {[%emt 0:00:05]} 4. Nc3 {[%emt 0:00:09]} c5 {[%emt 0:00:05]} 5. e3 {[%emt 0:00:22]} dxc4 {[%emt 0:00:07]} 6. Bxc4 {[%emt 0:00:12]} a6 {[%emt 0:00:04]} 7. O-O {[%emt 0:04:38]} b5 {[%emt 0:01:03]} 8. Bd3 {[%emt 0:01:03]} Bb7 {[%emt 0:00:46]} 9. dxc5 {[%emt 0:05:33]} Bxc5 {[%emt 0:00:49]} 10. e4 {[%emt 0:01:04]} Nbd7 {[%emt 0:03:31]} 11. Qe2 {[%emt 0:08:38]} O-O {[%emt 0:14:37]} 12. Bf4 {[%emt 0:04:21]} Nh5 {[%emt 0:05:38] Black has an edge.} 13. Bd2 {[%emt 0:11:48]} Qc7 {[%emt 0:03:55]} 14. e5 {[%emt 0:22:23]} (14. b4 $11 {keeps the balance.} Be7 15. a4) 14... g6 {[%emt 0:20:13]} (14... Bxf3 $17 15. Qxf3 g6 (15... Nxe5 16. Bxh7+ Kxh7 17. Qxh5+ Kg8 18. Ne4 $16) (15... Qxe5 16. Rfe1 $14)) 15. Be4 $14 {[%emt 0:01:27]} Rad8 {[%emt 0:09:11]} (15... Be7 $14) 16. Bxb7 {[%emt 0:02:26]} ({White should try} 16. Rac1) 16... Qxb7 $16 {[%emt 0:00:07]} 17. Bg5 {[%emt 0:01:07] Prevents Be7.} Rb8 {[%emt 0:04:22]} ({Better is} 17... Rc8 $14) 18. Ne4 $18 {[%emt 0:01:06]} Rfe8 $2 {[%emt 0:06:37]} (18... Rfc8 19. Rad1 Kh8) 19. g4 {[%emt 0:01:46]} h6 {[%emt 0:09:41]} 20. Bxh6 {[%emt 0:01:21]} Ng7 {[%emt 0:02:05]} 21. Bg5 {[%emt 0:02:32]} (21. Rad1 $142 {[%cal Od1d7] Black must now prevent Rxd7!} Be7 22. Bg5) 21... Rec8 {[%emt 0:02:29]} 22. Rad1 {[%emt 0:05:02][%cal Od1d7] [#] And now Rxd7! would win.} Nb6 {[%emt 0:02:03]} (22... Ne8 23. h4 Bb6) 23. Nf6+ {[%emt 0:00:57] White is clearly winning.} Kf8 {[%emt 0:01:05]} 24. Bh6 {[%emt 0:01:24]} Rd8 {[%emt 0:00:50]} 25. Ng5 {[%emt 0:01:07]} Nc4 {[%emt 0:02:16]} 26. Ngh7+ {[%emt 0:01:51]} Ke7 {[%emt 0:00:04]} 27. Bxg7 {[%emt 0:01:38]} Bd4 {[%emt 0:00:55] [#]} 28. Bf8+ $1 {[%emt 0:00:55]} Rxf8 {[%emt 0:00:24]} 29. Rxd4 {[%emt 0:00:09][%cal Of1d1] Intending Rfd1! and mate.} Rfd8 {[%emt 0:03:36]} 30. Rfd1 {[%emt 0:00:27] Weighted Error Value: White=0.37/Black=0.76.  Mistake:       	White=3     	Black=5      Inaccurate:     	---       	Black=1      OK:         	White=5     	Black=4      Best:        	White=1     	Black=1} 1-0

[Event "45th FIDE Womens Olympiad 2024"]
[Site "Budapest"]
[Date "2024.09.19"]
[Round "8.19"]
[White "Omonova, Umida"]
[Black "Lee, Alice"]
[Result "0-1"]
[ECO "B30"]
[WhiteElo "2032"]
[BlackElo "2384"]
[Annotator "TA"]
[PlyCount "114"]
[EventDate "2024.09.05"]
[EventType "team-tourn"]
[EventCountry "HUN"]
[SourceTitle "playchess.com"]
[Source "ChessBase"]
[SourceQuality "1"]
[WhiteTeam "Uzbekistan"]
[BlackTeam "United States of America"]
[WhiteTeamCountry "UZB"]
[BlackTeamCountry "USA"]
[TimeControl "40/5400+30:1800+30"]

{[%evp 13,114,0,42,40,43,40,49,20,50,43,48,43,46,38,78,52,54,0,2,0,0,-25,-27,-37,-39,-46,-32,-40,-52,-46,-33,-53,-53,-79,-82,-79,-62,-84,-91,-91,-86,-72,-78,-104,-106,-117,-108,-98,-98,-98,-98,-115,-127,-124,-115,-118,-65,-72,-76,-268,-271,-288,-274,-252,-193,-204,-212,-267,-235,-227,-228,-314,-291,-291,-286,-445,-454,-512,-461,-444,-387,-384,-360,-825,-825,-833,-821,-1277,-1260,-1089,-767,-820,-790,-737,-730,-2497,-2069,-2310,-966,-4810,-4706,-2235,-2013]} 1. e4 {[%emt 0:00:56]} c5 {[%emt 0:00:36]} 2. Nf3 {[%emt 0:00:34]} Nc6 {[%emt 0:00:36]} 3. Bb5 {[%emt 0:00:38]} e6 {[%emt 0:00:39]} 4. O-O {[%emt 0:00:32]} Nge7 {[%emt 0:00:26]} 5. Re1 {[%emt 0:00:36]} b6 {[%emt 0:00:57]} 6. c3 {[%emt 0:00:19] B30: Sicilian: 2...Nc6 3 Bb5, lines without ...g6.} a6 {[%emt 0:00:53]} 7. Be2 {[%emt 0:00:19]} d5 {[%emt 0:06:09]} 8. exd5 {[%emt 0:01:25]} Nxd5 {[%emt 0:00:22]} 9. d4 {[%emt 0:00:41]} Nf6 {[%emt 0:01:55]} 10. Ne5 $146 {[%emt 0:10:37]} ({Predecessor:} 10. dxc5 Qxd1 11. Rxd1 Bxc5 12. Nfd2 Bb7 13. a4 Ne5 14. Na3 Rd8 15. b4 Bd6 16. Ndc4 Nxc4 17. Nxc4 {1-0 Antipov,M (2602)-Cordova,E (2531) Philadelphia op 17th 2024 (7)}) 10... Bb7 {[%emt 0:10:42]} (10... Nxe5 {simplifies} 11. dxe5 Qxd1 12. Rxd1 Nd5) 11. Bf3 {[%emt 0:03:32]} Rc8 {[%emt 0:06:14]} 12. Qe2 {[%emt 0:06:20]} Bd6 {[%emt 0:10:24]} 13. Nxc6 {[%emt 0:15:11]} Bxc6 {[%emt 0:01:06]} 14. Bxc6+ {[%emt 0:00:07]} (14. Qxa6 Bxf3 15. gxf3 O-O 16. dxc5 Rxc5 $17 (16... bxc5 17. Na3 $11) (16... Bxc5 17. Nd2 $11)) 14... Rxc6 {[%emt 0:00:09]} 15. Qf3 {[%emt 0:00:11]} (15. Qxa6 cxd4 16. Rd1 Qb8 $11) (15. dxc5 $14 bxc5 16. c4) 15... Rc7 {[%emt 0:02:12]} 16. dxc5 {[%emt 0:02:28]} Bxc5 {[%emt 0:06:06]} 17. Bg5 {[%emt 0:11:48]} Qd5 {[%emt 0:04:09]} 18. Qxd5 {[%emt 0:01:47]} Nxd5 {[%emt 0:00:06]} 19. Nd2 {[%emt 0:03:19]} f6 {[%emt 0:01:16]} 20. Bh4 {[%emt 0:00:09]} Kf7 {[%emt 0:02:08]} 21. Rad1 {[%emt 0:01:31]} Rd8 {[%emt 0:03:52]} 22. Nf3 {[%emt 0:03:31]} Be7 {[%emt 0:03:20]} 23. Bg3 {[%emt 0:03:52]} e5 {[%emt 0:04:03]} 24. Rd2 {[%emt 0:07:23]} Ke8 {[%emt 0:01:05]} 25. Red1 {[%emt 0:01:14]} Rcd7 {[%emt 0:00:12]} 26. Kf1 {[%emt 0:04:56]} b5 {[%emt 0:02:06]} 27. Ke2 {[%emt 0:01:26]} g5 {[%emt 0:03:10]} 28. Ne1 {[%emt 0:02:39]} h5 {[%emt 0:06:24]} 29. h3 {[%emt 0:00:05]} h4 {[%emt 0:00:56]} 30. Bh2 {[%emt 0:00:01]} Kf7 {[%emt 0:01:19]} 31. Nc2 {[%emt 0:03:34]} Ke6 {[%emt 0:01:21]} 32. Ke1 {[%emt 0:05:05]} Bc5 {[%emt 0:01:59]} 33. Re2 {[%emt 0:00:57]} Kf5 {[%emt 0:06:59]} 34. Red2 {[%emt 0:01:28]} Nb6 {[%emt 0:00:54]} ({Black should play} 34... a5 $17 35. b4 axb4 36. cxb4 Be7 (36... Nxb4 37. Rxd7 Nxc2+ 38. Kf1 $11)) 35. Rxd7 $15 {[%emt 0:01:00]} Rxd7 {[%emt 0:00:06]} 36. Rc1 $2 {[%emt 0:00:54]} (36. Rxd7 $17 Nxd7 37. Ke2) 36... Na4 $19 {[%emt 0:02:25]} 37. b4 {[%emt 0:01:30]} Bb6 {[%emt 0:05:33]} 38. Na3 {[%emt 0:00:05]} Rc7 {[%emt 0:01:42]} (38... Rd3 39. Nb1 $19) 39. Nb1 {[%emt 0:00:56]} Ke6 {[%emt 0:00:23]} 40. Bg1 {[%emt 0:02:01]} Nb2 {[%emt 0:02:56]} 41. Ke2 {[%emt 0:30:23]} Rd7 {[%emt 0:30:38]} 42. g3 {[%emt 0:02:39]} Nc4 {[%emt 0:00:00]} 43. gxh4 {[%emt 0:00:00]} gxh4 {[%emt 0:00:00]} 44. Rf1 {[%emt 0:00:00]} (44. Rd1 $142) 44... e4 $19 {[%emt 0:00:00]} 45. Re1 {[%emt 0:00:00]} f5 {[%emt 0:00:00]} 46. f3 {[%emt 0:00:00]} e3 {[%emt 0:00:00]} 47. Bh2 {[%emt 0:00:00]} Rg7 {[%emt 0:00:00]} 48. Kf1 $2 {[%emt 0:00:00]} (48. Rg1 Rxg1 49. Bxg1) 48... f4 $19 {[%emt 0:00:00]} 49. Bxf4 {[%emt 0:00:00]} Rf7 {[%emt 0:00:00]} 50. Bg5 {[%emt 0:00:00]} Rxf3+ {[%emt 0:00:00]} 51. Ke2 {[%emt 0:00:00]} Rxh3 {[%emt 0:00:00]} 52. Bf4 {[%emt 0:00:00]} Ne5 {[%emt 0:00:00]} 53. Rf1 {[%emt 0:00:00]} Ng6 {[%emt 0:00:00]} 54. Bg5 {[%emt 0:00:00]} Rh2+ {[%emt 0:00:00]} 55. Kd3 {[%emt 0:00:00]} e2 {[%emt 0:00:00]} ({Not} 55... Rxa2 56. Rf6+ (56. Bxe3 $2 {perishes.} Ne5+ 57. Ke4 Re2 $19) 56... Ke5 57. Rxg6 $16 (57. Rxb6 $2 {too greedy.} e2 $19)) (55... Kd5 $142 56. Bf6 Rxa2) 56. Rf6+ {[%emt 0:00:00]} Ke5 {[%emt 0:00:00]} 57. Kd2 {[%emt 0:00:00]} Be3+ {[%emt 0:00:00]} 0-1

[Event "45th FIDE Womens Olympiad 2024"]
[Site "Budapest"]
[Date "2024.09.19"]
[Round "8.20"]
[White "Zatonskih, Anna"]
[Black "Nadirjanova, Nodira"]
[Result "1/2-1/2"]
[ECO "D33"]
[WhiteElo "2320"]
[BlackElo "2059"]
[Annotator "RC"]
[PlyCount "71"]
[EventDate "2024.09.05"]
[EventType "team-tourn"]
[EventCountry "HUN"]
[SourceTitle "playchess.com"]
[Source "ChessBase"]
[SourceQuality "1"]
[WhiteTeam "United States of America"]
[BlackTeam "Uzbekistan"]
[WhiteTeamCountry "USA"]
[BlackTeamCountry "UZB"]
[TimeControl "40/5400+30:1800+30"]

1. d4 {[%emt 0:00:04]} d5 {[%emt 0:00:15]} 2. c4 {[%emt 0:00:06]} e6 {[%emt 0:00:22]} 3. Nc3 {[%emt 0:00:11]} c5 {[%emt 0:00:43]} 4. cxd5 {[%emt 0:06:31]} exd5 {[%emt 0:00:10]} 5. Nf3 {[%emt 0:00:23]} Nf6 {[%emt 0:00:32]} 6. g3 {[%emt 0:09:55]} Nc6 {[%emt 0:06:27]} 7. Bg2 {[%emt 0:00:15]} cxd4 {[%emt 0:08:17]} 8. Nxd4 {[%emt 0:02:32]} Bc5 {[%emt 0:00:20]} 9. Nxc6 {[%emt 0:06:16]} bxc6 {[%emt 0:00:08]} 10. O-O {[%emt 0:00:04]} O-O {[%emt 0:00:29]} 11. Qc2 {[%emt 0:14:22]} Bb6 {[%emt 0:01:40]} 12. Na4 {[%emt 0:07:55]} Bd7 {[%emt 0:01:52]} 13. b3 {[%emt 0:06:23]} Qe7 {[%emt 0:01:58]} 14. Bb2 {[%emt 0:01:57]} Rfe8 {[%emt 0:00:26]} 15. e3 {[%emt 0:10:31]} Ne4 {[%emt 0:20:29]} 16. Rac1 {[%emt 0:01:26]} Rac8 {[%emt 0:01:09]} 17. Rfe1 {[%emt 0:10:04]} Qg5 {[%emt 0:10:28]} 18. Qe2 {[%emt 0:04:45]} c5 {[%emt 0:01:49]} 19. Nxb6 {[%emt 0:00:57]} axb6 {[%emt 0:00:10]} 20. a4 {[%emt 0:02:54]} h5 {[%emt 0:06:40]} 21. f3 {[%emt 0:01:11]} Nd6 {[%emt 0:06:33]} 22. Qf2 {[%emt 0:01:24]} Bc6 {[%emt 0:04:33]} 23. a5 {[%emt 0:00:40]} Bb7 {[%emt 0:02:44]} 24. axb6 {[%emt 0:00:15]} Qd8 {[%emt 0:00:17]} 25. b4 {[%emt 0:01:00]} cxb4 {[%emt 0:00:39]} 26. Bd4 {[%emt 0:04:29]} Nc4 {[%emt 0:08:16]} 27. Rb1 {[%emt 0:00:15]} Qd6 {[%emt 0:00:30]} 28. Qa2 {[%emt 0:00:39]} Rc6 {[%emt 0:02:21]} 29. Qa4 {[%emt 0:03:30]} Na3 {[%emt 0:01:30]} 30. Rb2 {[%emt 0:00:38]} Ra8 {[%emt 0:00:14]} 31. Qb3 {[%emt 0:02:12]} Nc4 {[%emt 0:00:18]} 32. Ra2 {[%emt 0:01:38]} Rxa2 {[%emt 0:00:52]} 33. Qxa2 {[%emt 0:00:01]} Nxb6 {[%emt 0:00:12]} 34. Qa1 {[%emt 0:00:38]} f6 {[%emt 0:00:42]} 35. f4 {[%emt 0:00:15]} Nc4 {[%emt 0:04:05]} 36. Qa7 {[%emt 0:01:31]} 1/2-1/2